Workbook

Sheet Info
A1: GHGfrack v1.0
A3: A model for computing greenhouse gas (GHG) emissions from hydraulic fracturing operations
A5: Author: | C5: Kourosh Vafi | E5: Department of Energy Resources Engineering, Stanford University | M5: vafi@stanford.edu
A6: Supervisor: | C6: Adam R. Brandt | E6: Department of Energy Resources Engineering, Stanford University | M6: abrandt@stanford.edu
A8: Release date: | C8: September 2015
A10: Acknowledgements: | C10: Funding for GHGfrack development has been provided by:
C11: California Air Resources Board, as part of agreement number 13-408
A13: Copyright statement: | C13: Copyright © 2015 The Board of Trustees of the Leland Stanford Junior University
C14: All rights reserved.
C16: The GHGfrack, source code, binary files, and operating manuals are being provided free of charge. Software may be downloaded, modified and redistributed freely under the following terms and conditions:
C17: Redistributions of any of the following: Software's source code, executables, and any other materials provided must
C18: retain the above copyright notice;
C19: require that the source and executable with any modifications be made publicly available under these same terms and conditions and;
C20: be sent to: Adam Brandt, Department of Energy Resources Engineering, Stanford University: abrandt@stanford.edu.
C21: Include this entire Agreement with any redistribution.
C22: Neither the name of Stanford University nor the names of the contributors may be used to endorse or promote products derived from this Software without specific prior written permission.
C23: Software is being provided “AS IS” and With All Faults. Users acknowledge that Stanford or contributors will not provide any maintenance or support for Software.
C24: Stanford makes no representations and extends no warranties of any kind, either express or implied.
C25: Stanford disclaims any express or implied warranty of merchantability, or fitness for a particular purpose, of non-infringement, or arising out of any course of dealing.
C26: Stanford is not liable for any special, consequential, lost profits, expectation, punitive or other indirect damages in connection with any claim arising out of or related to the use of Software whether grounded in tort (including negligence), strict liability, contract, or otherwise; and,
C27: Users will indemnify, hold harmless and defend Stanford against any claim of any kind arising out of or related to the exercise of any rights in this Agreement.

Sheet Settings
A1: Program settings
A3: Parameter | G3: User | H3: Default | J3: Sources and notes
A4: Bingham plastic turbulent annular flow | G4: 2 | H4: 2
B5: 1 = Approximation with Newtonian turbulent flow | J5: 1: Azar & Samuel
B6: 2 = Empirical equation | J6: 2: Petroleum Engineering Hanbook Vol. II
A9: Bingham plastic turbulent pipe flow | G9: 2 | H9: 2
B10: 1 = Approximation with Newtonian turbulent flow | J10: 1: Azar & Samuel
B11: 2 = Empirical equation | J11: 2: Petroleum Engineering Hanbook Vol. II
A14: Mud flow rate | G14: 1 | H14: 1 | J14: For power law fluids , mud flow rate must be set as manual.
B15: 1 = Automatic
B16: 2 = Manual

Sheet Drilling Power
A1: Rotational Energy via Rotary Table: Input Data
B2: User | C2: Example | D2: Units | E2: Notes
A3: Is rotary table active? | B3: Yes | C3: Yes | E3: Yes/No
A4: User defined torque value | B4: Yes | C4: Yes | E4: Yes/No | F4: No for automatic mode: automatic estimation based on Azar and Samuel
A5: Length of drill string at top of the section | B5: 0 | C5: 50 | D5: ft | F5: method pages 23 and 24
A6: Length of drill string at bottom of the section | B6: 50 | C6: 4250 | D6: ft
A7: Rate of drill penetration (ROP) | B7: 0.22 | C7: 1 | D7: ft/min
A8: Rotationl speed | B8: 20 | C8: 60 | D8: rpm
A9: Inclination angle | B9: 0 | C9: 0 | D9: degree | E9: Vertical =0 , Horizontal = 90, Directional > 0
A11: Engine Efficiency | B11: 45 | C11: 45 | D11: %
A13: Torque factors: | B13: 1.625 | C13: =(1.5+1.75)/2 -> 1.625 | E13: for shallow holes less than 10,000 ft with light drill string = 1.5 to 1.75 | M13: Azar and Samuel page 24
A14: (Automatic mode) | B14: 1.875 | C14: =AVERAGE(1.75,2) -> 1.875 | E14: for 10,000 ft - 15,000 ft wells with average conditions = 1.75 to 2.0
B15: 2.125 | C15: =AVERAGE(2,2.25) -> 2.125 | E15: for deep holes with heavy drill string = 2.0 to 2.25
B16: 2.625 | C16: =AVERAGE(2.25,3) -> 2.625 | E16: for high torque torque = 2.25 to 3.0
A18: Torque values: | B18: 38500 | C18: 8500 | D18: ft-lbf | E18: vertical | G18: less than 15,000 ft-lbf | M18: Azar and Samuel page 23
A19: (Applied torque is known) | B19: 15000 | C19: 15800 | D19: ft-lbf | E19: horizontal | G19: may exceed 80,000 ft-lbf
B20: 15000 | C20: 13700 | D20: ft-lbf | E20: inclined
A22: Rotaional Energy via Rotary Table: Results
A24: Drilling time | B24: 3.787878788 | C24: h
A25: Drilling power segment 1 | B25: 325.6296296 | C25: hp | E25: Drilling string length less than 10,000 ft or directional well
A26: Drilling power segment 2 | B26: NA | C26: hp | E26: Drilling string length 10,000 to 15,000 ft
A27: Drilling power segment 3 | B27: NA | C27: hp | E27: Drilling string length more than 15,000 ft
A28: Drilling energy required | B28: 3.138420131 | C28: MMBtu
A29: Max HP | B29: =MAX(B25:B27) -> 325.6296296 | C29: hp
A32: Mud Circulation: Input Data
B34: User | C34: Example
A35: Mud Characteristics:
A37: Fluid type: | B37: 2 | C37: 2
A38: (1) Newtonian
A39: (2) Bingham plastic
A40: (3) Power law | B40: .
A42: Mud viscosity:
A43: Dynamic viscosity (Newtonian fluid) | C43: 1 | D43: cp
A44: Plasic viscosity | B44: 25 | C44: 25 | D44: cp
A45: Consistency index K (Power law fluid) | B45: 0.066 | C45: 0.066 | D45: equivalent cp
A46: Power law index n | B46: 0.29 | C46: 0.29
A47: Yield stress | B47: 15 | C47: 15 | D47: lbs/100 ft^2
A49: Mud density | B49: 12 | C49: 12 | D49: lbs/gal
A51: Drill cuttings characteristics:
A53: Drill cuttings sieve diameter | B53: 0.5 | C53: 0.5 | D53: in | G53: 1/8 to 5/8 in. in normal drilling and larger when sloughing
A54: Drill cuttings density | B54: 25.03621336 | C54: 25.03621336 | D54: lbs/gal
A56: Geometry:
A58: Length of drill collar | B58: 700 | C58: 700 | D58: ft
A59: Hole diameter | B59: 24 | C59: 12.25 | D59: inch
A60: Drill pipe OD | B60: 6.625 | C60: 6.625 | D60: inch
A61: Drill pipe ID | B61: 5.965 | C61: 5.965 | D61: inch
A62: Drill collar OD | B62: 18.48 | C62: 9.5 | D62: inch
A63: Drill collar ID | B63: 8.6856 | C63: 4.433275 | D63: inch
A64: Number of segments of the drilling section | B64: 100 | C64: 100
A65: Drill pipe roughness | B65: 8e-05 | C65: 8e-05 | D65: inch
A69: Pump:
A70: Mud pump efficiency | B70: 65 | C70: 65 | D70: %
A72: Drill bit:
A73: Number of nozzles | B73: 5 | C73: 3
A74: Size of nozzles | B74: 0.5 | C74: =11/32 -> 0.34375 | D74: in | G74: Azar and Samuel 2007 page 93 : Example 3-2
A75: nozzle discharge coefficient Cd | B75: 0.95 | C75: 0.95 | G75: Azar and Samuel 2007 page 93
A77: Is downhole motor in place? | B77: Yes | C77: Yes | D77: Yes/No
B78: 1
A82: Mud flow rate & downhole motor:
A84: Pressure drop across downhole motor | B84: 700 | C84: 500 | D84: psi
A85: Downhole motor rpm | B85: 100 | C85: 100 | D85: rpm
A86: Mud flow rate | B86: NA | C86: 500 | D86: gpm
A87: Other sources of pressure drop | B87: 0 | C87: 0 | D87: psi
A89: Modified cuttings transport ratio | B89: 2.21 | C89: 2.21 | G89: 2 to 2.22 for vertical wells Azar and Samuel page 173
A92: Mud Circulation: Results
A94: Average velocity in annulus (hole - drill pipe) | B94: 2.348157589 | C94: ft/s | D94: seg # | E94: time(hr) | F94: DP_friction | G94: DP | H94: BHP | I94: E(MMBtu)
A95: Average velocity in annulus (hole - collar) | B95: 5.328495024 | C95: ft/s | D95: 1 | E95: 0.03787878788 | F95: 0.03778798236 | G95: 11412.50384 | H95: 31316.63514 | I95: 3.018298988
A96: Average velocity in drill pipe | B96: 35.11617902 | C96: ft/s | D96: 2 | E96: 0.07575757576 | F96: 0.07557596472 | G96: 11412.54163 | H96: 31316.73883 | I96: 3.018308982
A97: Average velocity in drill collar | B97: 16.56259952 | C97: ft/s | D97: 3 | E97: 0.1136363636 | F97: 0.1133639471 | G97: 11412.57942 | H97: 31316.84252 | I97: 3.018318976
A98: Mud flow rate | B98: 3057.161135 | C98: gpm | D98: 4 | E98: 0.1515151515 | F98: 0.1511519294 | G98: 11412.61721 | H98: 31316.94621 | I98: 3.01832897
A99: Re in pipe | B99: 55556.84036 | D99: 5 | E99: 0.1893939394 | F99: 0.1889399118 | G99: 11412.65499 | H99: 31317.04991 | I99: 3.018338964
A100: Re in collar | B100: 20686.4683 | D100: 6 | E100: 0.2272727273 | F100: 0.2267278942 | G100: 11412.69278 | H100: 31317.1536 | I100: 3.018348957
A101: Re hole - pipe annulus | B101: 639.2579162 | D101: 7 | E101: 0.2651515152 | F101: 0.2645158765 | G101: 11412.73057 | H101: 31317.25729 | I101: 3.018358951
A102: Re hole - collar annulus | B102: 2602.62548 | D102: 8 | E102: 0.303030303 | F102: 0.3023038589 | G102: 11412.76836 | H102: 31317.36098 | I102: 3.018368945
A103: Pressure drop in drill pipe | B103: 0.3364089698 | C103: psi/ft | D103: 9 | E103: 0.3409090909 | F103: 0.3400918412 | G103: 11412.80615 | H103: 31317.46468 | I103: 3.018378939
A104: Pressure drop in drill collar | B104: 0.05874647754 | C104: psi/ft | D104: 10 | E104: 0.3787878788 | F104: 0.3778798236 | G104: 11412.84393 | H104: 31317.56837 | I104: 3.018388933
A105: Pressure drop in annulus ( hole - drill pipe ) | B105: 0.004511001094 | C105: psi/ft | D105: 11 | E105: 0.4166666667 | F105: 0.415667806 | G105: 11412.88172 | H105: 31317.67206 | I105: 3.018398927
A106: Pressure drop in annulus ( hole - drill collar) | B106: 0.01682948718 | C106: psi/ft | D106: 12 | E106: 0.4545454545 | F106: 0.4534557883 | G106: 11412.91951 | H106: 31317.77575 | I106: 3.018408921
A107: Pressure drop across the downhole motor | B107: 700 | C107: psi | D107: 13 | E107: 0.4924242424 | F107: 0.4912437707 | G107: 11412.9573 | H107: 31317.87945 | I107: 3.018418915
A108: Pressure drop across the bit nozzles | B108: 10712.46605 | C108: psi | D108: 14 | E108: 0.5303030303 | F108: 0.5290317531 | G108: 11412.99509 | H108: 31317.98314 | I108: 3.018428909
A109: Pressure drop due to friction (max) | B109: 3.778798236 | C109: psi | D109: 15 | E109: 0.5681818182 | F109: 0.5668197354 | G109: 11413.03287 | H109: 31318.08683 | I109: 3.018438903
A110: Total pressure drop (max) | B110: 11416.24485 | C110: psi | D110: 16 | E110: 0.6060606061 | F110: 0.6046077178 | G110: 11413.07066 | H110: 31318.19053 | I110: 3.018448896
A111: Mud pump BHP (max) | B111: 31326.90071 | C111: hp | D111: 17 | E111: 0.6439393939 | F111: 0.6423957001 | G111: 11413.10845 | H111: 31318.29422 | I111: 3.01845889
A112: Drilling time | B112: 3.787878788 | C112: h | D112: 18 | E112: 0.6818181818 | F112: 0.6801836825 | G112: 11413.14624 | H112: 31318.39791 | I112: 3.018468884
A113: Energy consumption by mud pump | B113: 301.8793686 | C113: MMBtu | D113: 19 | E113: 0.7196969697 | F113: 0.7179716649 | G113: 11413.18403 | H113: 31318.5016 | I113: 3.018478878
D114: 20 | E114: 0.7575757576 | F114: 0.7557596472 | G114: 11413.22181 | H114: 31318.6053 | I114: 3.018488872
D115: 21 | E115: 0.7954545455 | F115: 0.7935476296 | G115: 11413.2596 | H115: 31318.70899 | I115: 3.018498866
D116: 22 | E116: 0.8333333333 | F116: 0.8313356119 | G116: 11413.29739 | H116: 31318.81268 | I116: 3.01850886
D117: 23 | E117: 0.8712121212 | F117: 0.8691235943 | G117: 11413.33518 | H117: 31318.91637 | I117: 3.018518854
D118: 24 | E118: 0.9090909091 | F118: 0.9069115767 | G118: 11413.37297 | H118: 31319.02007 | I118: 3.018528848
D119: 25 | E119: 0.946969697 | F119: 0.944699559 | G119: 11413.41075 | H119: 31319.12376 | I119: 3.018538842
D120: 26 | E120: 0.9848484848 | F120: 0.9824875414 | G120: 11413.44854 | H120: 31319.22745 | I120: 3.018548835
D121: 27 | E121: 1.022727273 | F121: 1.020275524 | G121: 11413.48633 | H121: 31319.33114 | I121: 3.018558829
D122: 28 | E122: 1.060606061 | F122: 1.058063506 | G122: 11413.52412 | H122: 31319.43484 | I122: 3.018568823
D123: 29 | E123: 1.098484848 | F123: 1.095851488 | G123: 11413.56191 | H123: 31319.53853 | I123: 3.018578817
D124: 30 | E124: 1.136363636 | F124: 1.133639471 | G124: 11413.59969 | H124: 31319.64222 | I124: 3.018588811
D125: 31 | E125: 1.174242424 | F125: 1.171427453 | G125: 11413.63748 | H125: 31319.74591 | I125: 3.018598805
D126: 32 | E126: 1.212121212 | F126: 1.209215436 | G126: 11413.67527 | H126: 31319.84961 | I126: 3.018608799
D127: 33 | E127: 1.25 | F127: 1.247003418 | G127: 11413.71306 | H127: 31319.9533 | I127: 3.018618793
D128: 34 | E128: 1.287878788 | F128: 1.2847914 | G128: 11413.75085 | H128: 31320.05699 | I128: 3.018628787
D129: 35 | E129: 1.325757576 | F129: 1.322579383 | G129: 11413.78863 | H129: 31320.16068 | I129: 3.018638781
D130: 36 | E130: 1.363636364 | F130: 1.360367365 | G130: 11413.82642 | H130: 31320.26438 | I130: 3.018648774
D131: 37 | E131: 1.401515152 | F131: 1.398155347 | G131: 11413.86421 | H131: 31320.36807 | I131: 3.018658768
D132: 38 | E132: 1.439393939 | F132: 1.43594333 | G132: 11413.902 | H132: 31320.47176 | I132: 3.018668762
D133: 39 | E133: 1.477272727 | F133: 1.473731312 | G133: 11413.93979 | H133: 31320.57546 | I133: 3.018678756
D134: 40 | E134: 1.515151515 | F134: 1.511519294 | G134: 11413.97757 | H134: 31320.67915 | I134: 3.01868875
D135: 41 | E135: 1.553030303 | F135: 1.549307277 | G135: 11414.01536 | H135: 31320.78284 | I135: 3.018698744
D136: 42 | E136: 1.590909091 | F136: 1.587095259 | G136: 11414.05315 | H136: 31320.88653 | I136: 3.018708738
D137: 43 | E137: 1.628787879 | F137: 1.624883242 | G137: 11414.09094 | H137: 31320.99023 | I137: 3.018718732
D138: 44 | E138: 1.666666667 | F138: 1.662671224 | G138: 11414.12873 | H138: 31321.09392 | I138: 3.018728726
D139: 45 | E139: 1.704545455 | F139: 1.700459206 | G139: 11414.16651 | H139: 31321.19761 | I139: 3.01873872
D140: 46 | E140: 1.742424242 | F140: 1.738247189 | G140: 11414.2043 | H140: 31321.3013 | I140: 3.018748714
D141: 47 | E141: 1.78030303 | F141: 1.776035171 | G141: 11414.24209 | H141: 31321.405 | I141: 3.018758707
D142: 48 | E142: 1.818181818 | F142: 1.813823153 | G142: 11414.27988 | H142: 31321.50869 | I142: 3.018768701
D143: 49 | E143: 1.856060606 | F143: 1.851611136 | G143: 11414.31767 | H143: 31321.61238 | I143: 3.018778695
D144: 50 | E144: 1.893939394 | F144: 1.889399118 | G144: 11414.35545 | H144: 31321.71607 | I144: 3.018788689
D145: 51 | E145: 1.931818182 | F145: 1.9271871 | G145: 11414.39324 | H145: 31321.81977 | I145: 3.018798683
D146: 52 | E146: 1.96969697 | F146: 1.964975083 | G146: 11414.43103 | H146: 31321.92346 | I146: 3.018808677
D147: 53 | E147: 2.007575758 | F147: 2.002763065 | G147: 11414.46882 | H147: 31322.02715 | I147: 3.018818671
D148: 54 | E148: 2.045454545 | F148: 2.040551047 | G148: 11414.50661 | H148: 31322.13084 | I148: 3.018828665
D149: 55 | E149: 2.083333333 | F149: 2.07833903 | G149: 11414.54439 | H149: 31322.23454 | I149: 3.018838659
D150: 56 | E150: 2.121212121 | F150: 2.116127012 | G150: 11414.58218 | H150: 31322.33823 | I150: 3.018848653
D151: 57 | E151: 2.159090909 | F151: 2.153914995 | G151: 11414.61997 | H151: 31322.44192 | I151: 3.018858646
D152: 58 | E152: 2.196969697 | F152: 2.191702977 | G152: 11414.65776 | H152: 31322.54562 | I152: 3.01886864
D153: 59 | E153: 2.234848485 | F153: 2.229490959 | G153: 11414.69555 | H153: 31322.64931 | I153: 3.018878634
D154: 60 | E154: 2.272727273 | F154: 2.267278942 | G154: 11414.73333 | H154: 31322.753 | I154: 3.018888628
D155: 61 | E155: 2.310606061 | F155: 2.305066924 | G155: 11414.77112 | H155: 31322.85669 | I155: 3.018898622
D156: 62 | E156: 2.348484848 | F156: 2.342854906 | G156: 11414.80891 | H156: 31322.96039 | I156: 3.018908616
D157: 63 | E157: 2.386363636 | F157: 2.380642889 | G157: 11414.8467 | H157: 31323.06408 | I157: 3.01891861
D158: 64 | E158: 2.424242424 | F158: 2.418430871 | G158: 11414.88449 | H158: 31323.16777 | I158: 3.018928604
D159: 65 | E159: 2.462121212 | F159: 2.456218853 | G159: 11414.92227 | H159: 31323.27146 | I159: 3.018938598
D160: 66 | E160: 2.5 | F160: 2.494006836 | G160: 11414.96006 | H160: 31323.37516 | I160: 3.018948592
D161: 67 | E161: 2.537878788 | F161: 2.531794818 | G161: 11414.99785 | H161: 31323.47885 | I161: 3.018958585
D162: 68 | E162: 2.575757576 | F162: 2.569582801 | G162: 11415.03564 | H162: 31323.58254 | I162: 3.018968579
D163: 69 | E163: 2.613636364 | F163: 2.607370783 | G163: 11415.07343 | H163: 31323.68623 | I163: 3.018978573
D164: 70 | E164: 2.651515152 | F164: 2.645158765 | G164: 11415.11121 | H164: 31323.78993 | I164: 3.018988567
D165: 71 | E165: 2.689393939 | F165: 2.682946748 | G165: 11415.149 | H165: 31323.89362 | I165: 3.018998561
D166: 72 | E166: 2.727272727 | F166: 2.72073473 | G166: 11415.18679 | H166: 31323.99731 | I166: 3.019008555
D167: 73 | E167: 2.765151515 | F167: 2.758522712 | G167: 11415.22458 | H167: 31324.101 | I167: 3.019018549
D168: 74 | E168: 2.803030303 | F168: 2.796310695 | G168: 11415.26236 | H168: 31324.2047 | I168: 3.019028543
D169: 75 | E169: 2.840909091 | F169: 2.834098677 | G169: 11415.30015 | H169: 31324.30839 | I169: 3.019038537
D170: 76 | E170: 2.878787879 | F170: 2.871886659 | G170: 11415.33794 | H170: 31324.41208 | I170: 3.019048531
D171: 77 | E171: 2.916666667 | F171: 2.909674642 | G171: 11415.37573 | H171: 31324.51578 | I171: 3.019058524
D172: 78 | E172: 2.954545455 | F172: 2.947462624 | G172: 11415.41352 | H172: 31324.61947 | I172: 3.019068518
D173: 79 | E173: 2.992424242 | F173: 2.985250607 | G173: 11415.4513 | H173: 31324.72316 | I173: 3.019078512
D174: 80 | E174: 3.03030303 | F174: 3.023038589 | G174: 11415.48909 | H174: 31324.82685 | I174: 3.019088506
D175: 81 | E175: 3.068181818 | F175: 3.060826571 | G175: 11415.52688 | H175: 31324.93055 | I175: 3.0190985
D176: 82 | E176: 3.106060606 | F176: 3.098614554 | G176: 11415.56467 | H176: 31325.03424 | I176: 3.019108494
D177: 83 | E177: 3.143939394 | F177: 3.136402536 | G177: 11415.60246 | H177: 31325.13793 | I177: 3.019118488
D178: 84 | E178: 3.181818182 | F178: 3.174190518 | G178: 11415.64024 | H178: 31325.24162 | I178: 3.019128482
D179: 85 | E179: 3.21969697 | F179: 3.211978501 | G179: 11415.67803 | H179: 31325.34532 | I179: 3.019138476
D180: 86 | E180: 3.257575758 | F180: 3.249766483 | G180: 11415.71582 | H180: 31325.44901 | I180: 3.01914847
D181: 87 | E181: 3.295454545 | F181: 3.287554465 | G181: 11415.75361 | H181: 31325.5527 | I181: 3.019158463
D182: 88 | E182: 3.333333333 | F182: 3.325342448 | G182: 11415.7914 | H182: 31325.65639 | I182: 3.019168457
D183: 89 | E183: 3.371212121 | F183: 3.36313043 | G183: 11415.82918 | H183: 31325.76009 | I183: 3.019178451
D184: 90 | E184: 3.409090909 | F184: 3.400918412 | G184: 11415.86697 | H184: 31325.86378 | I184: 3.019188445
D185: 91 | E185: 3.446969697 | F185: 3.438706395 | G185: 11415.90476 | H185: 31325.96747 | I185: 3.019198439
D186: 92 | E186: 3.484848485 | F186: 3.476494377 | G186: 11415.94255 | H186: 31326.07116 | I186: 3.019208433
D187: 93 | E187: 3.522727273 | F187: 3.51428236 | G187: 11415.98034 | H187: 31326.17486 | I187: 3.019218427
D188: 94 | E188: 3.560606061 | F188: 3.552070342 | G188: 11416.01812 | H188: 31326.27855 | I188: 3.019228421
D189: 95 | E189: 3.598484848 | F189: 3.589858324 | G189: 11416.05591 | H189: 31326.38224 | I189: 3.019238415
D190: 96 | E190: 3.636363636 | F190: 3.627646307 | G190: 11416.0937 | H190: 31326.48593 | I190: 3.019248409
D191: 97 | E191: 3.674242424 | F191: 3.665434289 | G191: 11416.13149 | H191: 31326.58963 | I191: 3.019258402
D192: 98 | E192: 3.712121212 | F192: 3.703222271 | G192: 11416.16928 | H192: 31326.69332 | I192: 3.019268396
D193: 99 | E193: 3.75 | F193: 3.741010254 | G193: 11416.20706 | H193: 31326.79701 | I193: 3.01927839
D194: 100 | E194: 3.787878788 | F194: 3.778798236 | G194: 11416.24485 | H194: 31326.90071 | I194: 3.019288384

Sheet Bulk Data Drilling
A1: Rotation Energy via Rotary Table: Input Data
A2: Number of sections | B2: 5 | C2: Example | D2: 1 | E2: 2 | F2: 3 | G2: 4 | H2: 5 | I2: 6 | J2: 7 | K2: 8 | L2: 9 | M2: 10
A3: Is rotary table active? | B3: Yes/No | C3: Yes | D3: Yes | E3: Yes | F3: Yes | G3: Yes | H3: Yes
A4: User defined torque value? | B4: Yes/No | C4: Yes | D4: Yes | E4: Yes | F4: Yes | G4: Yes | H4: Yes
A5: Length of drill string at top of the section | B5: ft | C5: 0 | D5: 50 | E5: 4250 | F5: 8500 | G5: 10855 | H5: 0
A6: Length of drill string at bottom of the section | B6: ft | C6: 10000 | D6: 4250 | E6: 8500 | F6: 10855 | G6: 14500 | H6: 50
A7: Rate of penetration of drill bit (ROP) | B7: ft/min | C7: 1 | D7: 2.5 | E7: 2.5 | F7: 1.25 | G7: 1.25 | H7: 0.22
A8: Rotational speed | B8: rpm | C8: 60 | D8: 60 | E8: 60 | F8: 60 | G8: 60 | H8: 20
A9: Inclination angle | B9: degree | C9: 0 | D9: 0 | E9: 0 | F9: 45 | G9: 90 | H9: 0
A11: Mechanical power transmission efficiency | B11: % | C11: 45 | D11: 45 | E11: 45 | F11: 45 | G11: 45 | H11: 45
A13: Torque factor : | C13: =(1.5+1.75)/2 -> 1.625 | D13: 1.625 | E13: 1.625 | F13: 1.625 | G13: 1.625 | H13: 1.625
C14: =AVERAGE(1.75,2) -> 1.875 | D14: 1.875 | E14: 1.875 | F14: 1.875 | G14: 1.875 | H14: 1.875
C15: =AVERAGE(2,2.25) -> 2.125 | D15: 2.125 | E15: 2.125 | F15: 2.125 | G15: 2.125 | H15: 2.125
C16: =AVERAGE(2.25,3) -> 2.625 | D16: 2.625 | E16: 2.625 | F16: 2.625 | G16: 2.625 | H16: 2.625
A17: Torque value:
A18: Vertical well | B18: ft-lbf | C18: 9000 | D18: 13000 | E18: 13000 | F18: 13000 | G18: 13000 | H18: 38500
A19: Horizontal well | B19: ft-lbf | C19: 11000 | D19: 15000 | E19: 15000 | F19: 15000 | G19: 15000 | H19: 15000
A20: Inclined well | B20: ft-lbf | C20: 11000 | D20: 15000 | E20: 15000 | F20: 15000 | G20: 15000 | H20: 15000
A22: Rotaion Energy via Rotary Table: Results
D23: 1 | E23: 2 | F23: 3 | G23: 4 | H23: 5 | I23: 6 | J23: 7 | K23: 8 | L23: 9 | M23: 10
A24: Drilling time | B24: h | D24: 28 | E24: 28.33333333 | F24: 31.4 | G24: 48.6 | H24: 3.787878788
A25: Drilling power segment 1 | B25: hp | D25: 329.8585859 | E25: 329.8585859 | F25: 380.6060606 | G25: 380.6060606 | H25: 325.6296296
A26: Drilling power segment 2 | B26: hp | D26: NA | E26: NA | F26: NA | G26: NA | H26: NA
A27: Drilling power segment 3 | B27: hp | D27: NA | E27: NA | F27: NA | G27: NA | H27: NA
A28: Drilling energy required | B28: MMBtu | D28: 23.50048994 | E28: 23.78025768 | F28: 30.408601 | G28: 47.06554167 | H28: 3.138420131
A29: Drilling power max | B29: hp | D29: 329.8585859 | E29: 329.8585859 | F29: 380.6060606 | G29: 380.6060606 | H29: 325.6296296
A30: Fuel efficiency | B30: Btu/hp.h | D30: 7093.593794 | E30: 7093.593794 | F30: 7071.777455 | G30: 7071.777455 | H30: 7095.411822
A31: Diesel fuel used | B31: gallon | D31: 510.0562 | E31: 516.1282976 | F31: 657.9605034 | G31: 1018.371989 | H31: 68.13393738
A32: GHG emissions | B32: tonne CO2 | D32: 5.16867947 | E32: 5.230211369 | F32: 6.667474968 | G32: 10.3197224 | H32: 0.6904385896
A34: Mud Circulation: Input Data
C36: Example | D36: 1 | E36: 2 | F36: 3 | G36: 4 | H36: 5 | I36: 6 | J36: 7 | K36: 8 | L36: 9 | M36: 10
A37: Fluid type: | C37: 2 | D37: 2 | E37: 2 | F37: 2 | G37: 2 | H37: 2
A38: (1) Newtonian
A39: (2) Bingham plastic
A40: (3) Power law | H40: .
A42: Mud viscosity:
A43: Dynamic viscosity (Newtonian fluids) | B43: cp
A44: Plastic viscosity | B44: cp | C44: 25 | D44: 25 | E44: 25 | F44: 25 | G44: 25 | H44: 25
A45: Consistency index K (power law fluid) | C45: 0.95 | D45: 0.066 | E45: 0.066 | F45: 0.066 | G45: 0.066 | H45: 0.066
A46: Power law index n | C46: 0.29 | D46: 0.29 | E46: 0.29 | F46: 0.29 | G46: 0.29 | H46: 0.29
A47: Yield stress (Yield point) | B47: lbf/100 ft^2 | C47: 15 | D47: 15 | E47: 15 | F47: 15 | G47: 15 | H47: 15
A49: Mud density | B49: lbm/gal | C49: 12 | D49: 12 | E49: 12 | F49: 12 | G49: 12 | H49: 12
A53: Drill cuttings sieve diameter | B53: in | C53: 1 | D53: 0.5 | E53: 0.5 | F53: 0.5 | G53: 0.5 | H53: 0.5
A54: Drill cuttings density | B54: lbm/gal | C54: =0.0022046226218/ 0.00026417205236*3 -> 25.03621336 | D54: 25.03621336 | E54: 25.03621336 | F54: 25.03621336 | G54: 25.03621336 | H54: 25.03621336
A58: Length of drill collar | B58: ft | C58: 1000 | D58: 700 | E58: 700 | F58: 700 | G58: 700 | H58: 700
A59: Hole diameter | B59: inch | C59: =8+7/8 -> 8.875 | D59: 12.25 | E59: 8.75 | F59: 8.75 | G59: 8.75 | H59: 24
A60: Drill pipe OD | B60: inch | C60: 6.625 | D60: 6.625 | E60: 5 | F60: 5 | G60: 5 | H60: 6.625
A61: Drill pipe ID | B61: inch | C61: 5.965 | D61: 5.965 | E61: 4 | F61: 4 | G61: 4 | H61: 5.965
A62: Drill collar OD | B62: inch | C62: 9.5 | D62: 9.5 | E62: 6.75 | F62: 6.75 | G62: 6.75 | H62: 18.48
A63: Drill collar ID | B63: inch | C63: 4.433275 | D63: 4.433275 | E63: 3.25 | F63: 3.25 | G63: 3.25 | H63: 8.6856
A64: Number of segments of the drilling section | C64: 100 | D64: 100 | E64: 100 | F64: 100 | G64: 100 | H64: 100
A65: Drill pipe roughness | B65: inch | C65: 8e-05 | D65: 8e-05 | E65: 8e-05 | F65: 8e-05 | G65: 8e-05 | H65: 8e-05
A70: Mud pump efficiency | B70: % | C70: 65 | D70: 65 | E70: 65 | F70: 65 | G70: 65 | H70: 65
A72: Drill bit:
A73: Number of nozzles | C73: 5 | D73: 5 | E73: 5 | F73: 5 | G73: 5 | H73: 5
A74: Size of nozzles | B74: in | C74: 0.5 | D74: 0.5 | E74: 0.5 | F74: 0.5 | G74: 0.5 | H74: 0.5
A75: Nozzle discharge coefficient Cd | C75: 0.95 | D75: 0.95 | E75: 0.95 | F75: 0.95 | G75: 0.95 | H75: 0.95
A77: Is downhole motor active? | C77: Yes | D77: Yes | E77: Yes | F77: Yes | G77: Yes | H77: Yes
A78: Downhole motor type: | C78: 1 | D78: 1 | E78: 1 | F78: 1 | G78: 1 | H78: 1
A79: (1) Turbine
A80: (2) Positive displacement
A81: (3) Electrical
A84: Pressure drop across downhole motor | B84: psi | C84: 500 | D84: 500 | E84: 500 | F84: 700 | G84: 700 | H84: 700
A85: Downhole motor rpm | B85: rpm | C85: 100 | D85: 100 | E85: 100 | F85: 100 | G85: 100 | H85: 100
A86: Mud flow rate | B86: gpm | D86: NA | E86: NA | F86: NA | G86: NA | H86: NA
A87: Other sources of pressure drop | B87: psi | C87: 0 | D87: 0 | E87: 0 | F87: 0 | G87: 0 | H87: 0
A89: Modified cuttings transport ratio | C89: 2.21 | D89: 2.21 | E89: 2.21 | F89: 2.21 | G89: 2.21 | H89: 2.21
A92: Mud Circulation: Results
D93: 1 | E93: 2 | F93: 3 | G93: 4 | H93: 5 | I93: 6 | J93: 7 | K93: 8 | L93: 9 | M93: 10
A94: Average velocity in annulus (hole-drill pipe) | B94: ft/s | D94: 2.348157589 | E94: 2.348157589 | F94: 2.348157589 | G94: 4.983988266 | H94: 2.348157589
A95: Average velocity in annulus (hole-collar) | B95: ft/s | D95: 4.168163745 | E95: 3.905705666 | F95: 3.905705666 | G95: 8.289899837 | H95: 5.328495024
A96: Average velocity in drill pipe | B96: ft/s | D96: 7.006737232 | E96: 7.567304729 | F96: 7.567304729 | G96: 16.06168094 | H96: 35.11617902
A97: Average velocity in drill collar | B97: ft/s | D97: 12.6849098 | E97: 11.46289947 | F97: 11.46289947 | G97: 24.33012023 | H97: 16.56259952
A98: Mud flow rate | B98: gpm | D98: 609.9958865 | E98: 296.2452429 | F98: 296.2452429 | G98: 628.7835287 | H98: 3057.161135
A99: Re in pipe | D99: 4226.108068 | E99: 4329.340394 | F99: 4329.340394 | G99: 14336.55832 | H99: 55556.84036
A100: Re in collar | D100: 10446.18845 | E100: 7775.952721 | F100: 7775.952721 | G100: 22956.28966 | H100: 20686.4683
A101: Re hole-pipe | D101: 586.4508936 | E101: 552.6943814 | F101: 552.6943814 | G101: 2085.640419 | H101: 639.2579162
A102: Re hole-collar | D102: 1398.441255 | E102: 1119.497098 | F102: 1119.497098 | G102: 3496.058972 | H102: 2602.62548
A103: Pressure drop in drill pipe | B103: psi/ft | D103: 0.02376482762 | E103: 0.04636507922 | F103: 0.04636507922 | G103: 0.1598087921 | H103: 0.3364089698
A104: Pressure drop in drill collar | B104: psi/ft | D104: 0.09429904167 | E104: 0.1128161031 | F104: 0.1128161031 | G104: 0.379161954 | H104: 0.05874647754
A105: Pressure drop in annulus (hole-drill pipe) | B105: psi/ft | D105: 0.01518866772 | E105: 0.02417450238 | F105: 0.02417450238 | G105: 0.02886042358 | H105: 0.004511001094
A106: Pressure drop in annulus (hole-drill collar) | B106: psi/ft | D106: 0.01662669728 | E106: 0.02694347674 | F106: 0.02694347674 | G106: 0.1378632247 | H106: 0.01682948718
A107: Pressure drop across the downhole motor | B107: psi | D107: 500 | E107: 500 | F107: 700 | G107: 700 | H107: 700
A108: Pressure drop across the bit nozzles | B108: psi | D108: 426.4877993 | E108: 100.5901763 | F108: 100.5901763 | G108: 453.1636979 | H108: 10712.46605
A109: Pressure drop due to friction (max) | B109: psi | D109: 215.9329257 | E109: 648.0404424 | F109: 814.1611571 | G109: 2965.552801 | H109: 3.778798236
A110: Total pressure drop (max) | B110: psi | D110: 1142.420725 | E110: 1248.630619 | F110: 1614.751333 | G110: 4118.716499 | H110: 11416.24485
A111: Mud pump BHP (max) | B111: hp | D111: 625.5021479 | E111: 332.0176653 | F111: 429.3711525 | G111: 2324.549945 | H111: 31326.90071
A112: Drilling time | B112: h | D112: 28 | E112: 28.33333333 | F112: 31.4 | G112: 48.6 | H112: 3.787878788
A113: Energy consumption by mud pump | B113: MMBtu | D113: 41.27210476 | E113: 21.091168 | F113: 32.55776245 | G113: 263.6946978 | H113: 301.8793686
A114: Fuel efficiency | B114: Btu/hp.h | D114: 6966.496627 | E114: 7092.665606 | F114: 7050.813342 | G114: 6236.075979 | H114: 6113.113782
A115: Diesel fuel used | B115: gallon | D115: 879.7227989 | E115: 457.7042181 | F115: 702.3742262 | G115: 5031.385504 | H115: 5646.387911
A116: GHG emissions | B116: tonne CO2 | D116: 8.914714045 | E116: 4.638168099 | F116: 7.117543602 | G116: 50.98579129 | H116: 57.21794828

Sheet Fracking Inputs
A1: Fracking Inputs
E3: User | F3: Example | G3: Unit
A4: Fluid density | E4: 9.036821177 | F4: 9.036821177 | G4: lbm/gal
A5: Viscosity | E5: 1 | F5: 1 | G5: cp
A6: Fracture gradient | E6: 0.9 | F6: 0.9 | G6: psi/ft
A8: Pipe roughness | E8: 8e-05 | F8: 8e-05 | G8: in
A9: g (gravitational acceleration) | E9: 32.174049 | F9: 32.174049 | G9: ft/s2
A11: Length of the fracking stage | E11: 300 | F11: 300 | G11: ft
A12: Number of segments | E12: 100 | F12: 100 | G12: NA
A14: Pump efficiency | E14: 65 | F14: 65 | G14: %
A15: Volume fluid injected | E15: 4871500.63 | F15: 4871500.63 | G15: gal
A16: Injection time | E16: 48 | F16: 48 | G16: hr
A18: Number of sections | E18: 3 | G18: Last section is the horizontal section
A20: Table 1. Geometry
E21: Section No. | F21: Net length(ft) | G21: Inclination angle ( degree) | H21: pipe ID (in)
E22: 1 | F22: 8500 | G22: 0 | H22: 5
E23: 2 | F23: 2355 | G23: 45 | H23: 5
E24: 3 | F24: 3645 | G24: 90 | H24: 5
E25: 4
E26: 5
E27: 6
E28: 7
E29: 8
E30: 9
E31: 10

Sheet Fracking Outputs
A1: Fracking Results
H2: Units
A3: Flow rate | G3: 1691.493274 | H3: gpm
A4: Pressure drop due friction in non-horizontal section | G4: 1705.978208 | H4: psi
A5: Pressure drop due friction in horizontal section | G5: See Table 2 | H5: psi
A6: Hydrostatic pressure | G6: 4772.333234 | H6: psi
A7: Pressure drop due hydraulic fracturing | G7: 9149.309436 | H7: psi
A8: Pump discharge pressure | G8: See Table 2 | H8: psi
A9: Pump BHP | G9: 9711.533486 | H9: hp | I9: Average value in case of multi-stage fracturing
A10: Pump energy consumption | G10: 1186.096821 | H10: MMBtu
A11: Fuel efficiency | G11: 6191.652939 | H11: Btu LHV Diesel/hp.hr
A12: Fuel consumption | G12: 22469.921 | H12: gal diesel
A13: Emissions | G13: 227.7000444 | H13: tonne CO2
A16: Table 1: | B16: Non-horizontal section | I16: Table 2: Horizontal Section
A17: Section No. | B17: Net vertical distance (ft) | C17: Pipe cs area (ft2) | D17: Velocity (ft/s) | E17: Re | F17: Press drop (psi/ft) | I17: Fracking stage or segments | J17: Horizontal section flow length(ft) | K17: Velocity (ft/s) | L17: Re | M17: Press drop (psi/ft) | N17: BHP | O17: Press drop (psi) | P17: Pump DP (psi)
A18: 1 | B18: 8500 | C18: 0.1362847222 | D18: 27.65286205 | E18: 1159508.018 | F18: 0.1571605903 | I18: 1 | J18: 3645 | K18: 27.65286205 | L18: 1159508.018 | M18: 0.1571605903 | N18: 10105.24099 | O18: 572.8503517 | P18: 6655.804762
A19: 2 | B19: 1665.899374 | C19: 0.1362847222 | D19: 27.65286205 | E19: 1159508.018 | F19: 0.1571605903 | I19: 2 | J19: 3345 | K19: 27.65286205 | L19: 1159508.018 | M19: 0.1571605903 | N19: 10033.65781 | O19: 525.7021746 | P19: 6608.656585
A20: 3 | I20: 3 | J20: 3045 | K20: 27.65286205 | L20: 1159508.018 | M20: 0.1571605903 | N20: 9962.074627 | O20: 478.5539975 | P20: 6561.508408
A21: 4 | I21: 4 | J21: 2745 | K21: 27.65286205 | L21: 1159508.018 | M21: 0.1571605903 | N21: 9890.491444 | O21: 431.4058204 | P21: 6514.360231
A22: 5 | I22: 5 | J22: 2445 | K22: 27.65286205 | L22: 1159508.018 | M22: 0.1571605903 | N22: 9818.908261 | O22: 384.2576433 | P22: 6467.212054
A23: 6 | I23: 6 | J23: 2145 | K23: 27.65286205 | L23: 1159508.018 | M23: 0.1571605903 | N23: 9747.325078 | O23: 337.1094662 | P23: 6420.063877
A24: 7 | I24: 7 | J24: 1845 | K24: 27.65286205 | L24: 1159508.018 | M24: 0.1571605903 | N24: 9675.741894 | O24: 289.9612891 | P24: 6372.9157
A25: 8 | I25: 8 | J25: 1545 | K25: 27.65286205 | L25: 1159508.018 | M25: 0.1571605903 | N25: 9604.158711 | O25: 242.813112 | P25: 6325.767523
A26: 9 | I26: 9 | J26: 1245 | K26: 27.65286205 | L26: 1159508.018 | M26: 0.1571605903 | N26: 9532.575528 | O26: 195.6649349 | P26: 6278.619345
A27: 10 | I27: 10 | J27: 945 | K27: 27.65286205 | L27: 1159508.018 | M27: 0.1571605903 | N27: 9460.992345 | O27: 148.5167578 | P27: 6231.471168
I28: 11 | J28: 645 | K28: 27.65286205 | L28: 1159508.018 | M28: 0.1571605903 | N28: 9389.409161 | O28: 101.3685807 | P28: 6184.322991
I29: 12 | J29: 345 | K29: 27.65286205 | L29: 1159508.018 | M29: 0.1571605903 | N29: 9317.825978 | O29: 54.22040366 | P29: 6137.174814

Sheet Pipe Spec
A1: Pipe specifications
B2: No. | C2: 1 | D2: 2 | E2: 3 | F2: 4 | G2: 5 | H2: 6 | I2: 7 | J2: 8 | K2: 9 | L2: 10 | M2: 11 | N2: 12 | O2: 13
B4: Table 1: Drill collar dimensions API-RP-7G
B5: Weight ( lbf/ft)
A6: No. | B6: OD/ID(in) | C6: 1 | D6: 1.25 | E6: 1.5 | F6: =1+3/4 -> 1.75 | G6: 2 | H6: 2.25 | I6: 2.5 | J6: =2+13/16 -> 2.8125 | K6: 3 | L6: 3.25 | M6: 3.5 | N6: 3.75 | O6: 4
A7: 1 | B7: =2+7/8 -> 2.875 | C7: 19 | D7: 18 | E7: 16 | F7: 0 | G7: 0 | H7: 0 | I7: 0 | J7: 0 | K7: 0 | L7: 0 | M7: 0 | N7: 0 | O7: 0
A8: 2 | B8: 3 | C8: 21 | D8: 20 | E8: 18 | F8: 0 | G8: 0 | H8: 0 | I8: 0 | J8: 0 | K8: 0 | L8: 0 | M8: 0 | N8: 0 | O8: 0
A9: 3 | B9: =3+1/8 -> 3.125 | C9: 22 | D9: 22 | E9: 20 | F9: 0 | G9: 0 | H9: 0 | I9: 0 | J9: 0 | K9: 0 | L9: 0 | M9: 0 | N9: 0 | O9: 0
A10: 4 | B10: =3+1/4 -> 3.25 | C10: 26 | D10: 24 | E10: 22 | F10: 0 | G10: 0 | H10: 0 | I10: 0 | J10: 0 | K10: 0 | L10: 0 | M10: 0 | N10: 0 | O10: 0
A11: 5 | B11: =3+1/2 -> 3.5 | C11: 30 | D11: 29 | E11: 27 | F11: 0 | G11: 0 | H11: 0 | I11: 0 | J11: 0 | K11: 0 | L11: 0 | M11: 0 | N11: 0 | O11: 0
A12: 6 | B12: =3+3/4 -> 3.75 | C12: 35 | D12: 33 | E12: 32 | F12: 0 | G12: 0 | H12: 0 | I12: 0 | J12: 0 | K12: 0 | L12: 0 | M12: 0 | N12: 0 | O12: 0
A13: 7 | B13: 4 | C13: 40 | D13: 39 | E13: 37 | F13: 35 | G13: 32 | H13: 29 | I13: 0 | J13: 0 | K13: 0 | L13: 0 | M13: 0 | N13: 0 | O13: 0
A14: 8 | B14: =4+1/8 -> 4.125 | C14: 43 | D14: 41 | E14: 39 | F14: 37 | G14: 35 | H14: 32 | I14: 0 | J14: 0 | K14: 0 | L14: 0 | M14: 0 | N14: 0 | O14: 0
A15: 9 | B15: =4+1/4 -> 4.25 | C15: 46 | D15: 44 | E15: 42 | F15: 40 | G15: 38 | H15: 35 | I15: 0 | J15: 0 | K15: 0 | L15: 0 | M15: 0 | N15: 0 | O15: 0
A16: 10 | B16: =4+1/2 -> 4.5 | C16: 51 | D16: 50 | E16: 48 | F16: 46 | G16: 43 | H16: 41 | I16: 0 | J16: 0 | K16: 0 | L16: 0 | M16: 0 | N16: 0 | O16: 0
A17: 11 | B17: =4+3/4 -> 4.75 | C17: 0 | D17: 0 | E17: 54 | F17: 52 | G17: 50 | H17: 47 | I17: 44 | J17: 0 | K17: 0 | L17: 0 | M17: 0 | N17: 0 | O17: 0
A18: 12 | B18: 5 | C18: 0 | D18: 0 | E18: 61 | F18: 59 | G18: 56 | H18: 53 | I18: 50 | J18: 0 | K18: 0 | L18: 0 | M18: 0 | N18: 0 | O18: 0
A19: 13 | B19: =5+1/4 -> 5.25 | C19: 0 | D19: 0 | E19: 68 | F19: 65 | G19: 63 | H19: 60 | I19: 57 | J19: 0 | K19: 0 | L19: 0 | M19: 0 | N19: 0 | O19: 0
A20: 14 | B20: =5+1/2 -> 5.5 | C20: 0 | D20: 0 | E20: 75 | F20: 73 | G20: 70 | H20: 67 | I20: 64 | J20: 60 | K20: 0 | L20: 0 | M20: 0 | N20: 0 | O20: 0
A21: 15 | B21: =5+3/4 -> 5.75 | C21: 0 | D21: 0 | E21: 82 | F21: 80 | G21: 78 | H21: 75 | I21: 72 | J21: 67 | K21: 64 | L21: 60 | M21: 0 | N21: 0 | O21: 0
A22: 16 | B22: 6 | C22: 0 | D22: 0 | E22: 90 | F22: 88 | G22: 85 | H22: 83 | I22: 79 | J22: 75 | K22: 72 | L22: 68 | M22: 0 | N22: 0 | O22: 0
A23: 17 | B23: =6+1/4 -> 6.25 | C23: 0 | D23: 0 | E23: 98 | F23: 96 | G23: 94 | H23: 94 | I23: 88 | J23: 83 | K23: 80 | L23: 76 | M23: 72 | N23: 0 | O23: 0
A24: 18 | B24: =6+1/2 -> 6.5 | C24: 0 | D24: 0 | E24: 107 | F24: 105 | G24: 102 | H24: 99 | I24: 96 | J24: 91 | K24: 89 | L24: 85 | M24: 80 | N24: 0 | O24: 0
A25: 19 | B25: =6+3/4 -> 6.75 | C25: 0 | D25: 0 | E25: 116 | F25: 114 | G25: 111 | H25: 108 | I25: 105 | J25: 100 | K25: 98 | L25: 93 | M25: 89 | N25: 0 | O25: 0
A26: 20 | B26: 7 | C26: 0 | D26: 0 | E26: 125 | F26: 123 | G26: 120 | H26: 117 | I26: 114 | J26: 110 | K26: 107 | L26: 103 | M26: 98 | N26: 93 | O26: 84
A27: 21 | B27: =7+1/4 -> 7.25 | C27: 0 | D27: 0 | E27: 134 | F27: 132 | G27: 130 | H27: 127 | I27: 124 | J27: 119 | K27: 116 | L27: 112 | M27: 108 | N27: 103 | O27: 93
A28: 22 | B28: =7+1/2 -> 7.5 | C28: 0 | D28: 0 | E28: 144 | F28: 142 | G28: 139 | H28: 137 | I28: 133 | J28: 129 | K28: 126 | L28: 122 | M28: 117 | N28: 113 | O28: 102
A29: 23 | B29: =7+3/4 -> 7.75 | C29: 0 | D29: 0 | E29: 154 | F29: 152 | G29: 150 | H29: 147 | I29: 144 | J29: 139 | K29: 136 | L29: 132 | M29: 128 | N29: 123 | O29: 112
A30: 24 | B30: 8 | C30: 0 | D30: 0 | E30: 165 | F30: 163 | G30: 160 | H30: 157 | I30: 154 | J30: 150 | K30: 147 | L30: 143 | M30: 138 | N30: 133 | O30: 122
A31: 25 | B31: =8+1/4 -> 8.25 | C31: 0 | D31: 0 | E31: 176 | F31: 174 | G31: 171 | H31: 168 | I31: 165 | J31: 160 | K31: 158 | L31: 154 | M31: 149 | N31: 144 | O31: 133
A32: 26 | B32: =8+1/2 -> 8.5 | C32: 0 | D32: 0 | E32: 187 | F32: 185 | G32: 182 | H32: 179 | I32: 176 | J32: 172 | K32: 169 | L32: 165 | M32: 160 | N32: 155 | O32: 150
A33: 27 | B33: 9 | C33: 0 | D33: 0 | E33: 210 | F33: 208 | G33: 206 | H33: 203 | I33: 200 | J33: 195 | K33: 192 | L33: 188 | M33: 184 | N33: 179 | O33: 174
A34: 28 | B34: =9+1/2 -> 9.5 | C34: 0 | D34: 0 | E34: 234 | F34: 232 | G34: 230 | H34: 227 | I34: 224 | J34: 220 | K34: 216 | L34: 212 | M34: 209 | N34: 206 | O34: 198
A35: 29 | B35: =9+3/4 -> 9.75 | C35: 0 | D35: 0 | E35: 248 | F35: 245 | G35: 243 | H35: 240 | I35: 237 | J35: 232 | K35: 229 | L35: 225 | M35: 221 | N35: 216 | O35: 211
A36: 30 | B36: 10 | C36: 0 | D36: 0 | E36: 261 | F36: 259 | G36: 257 | H36: 254 | I36: 251 | J36: 246 | K36: 243 | L36: 239 | M36: 235 | N36: 230 | O36: 225
A37: 31 | B37: 11 | C37: 0 | D37: 0 | E37: 317 | F37: 315 | G37: 313 | H37: 310 | I37: 307 | J37: 302 | K37: 299 | L37: 295 | M37: 291 | N37: 286 | O37: 281
A38: 32 | B38: 12 | C38: 0 | D38: 0 | E38: 379 | F38: 377 | G38: 374 | H38: 371 | I38: 368 | J38: 364 | K38: 361 | L38: 357 | M38: 352 | N38: 347 | O38: 342
B42: Table 2: Parameters for automatic case
B43: Drill collar OD = a * hole size
B44: Drill collar ID = b * collar OD
B45: Drill pipe OD = c * collar OD
B46: Drill pipe ID = d * pipe OD
C49: a | D49: b | E49: c | F49: d
B50: default | C50: 0.77 | D50: 0.47 | E50: 0.67 | F50: 0.82
B51: user | C51: 0.77 | D51: 0.47 | E51: 0.67 | F51: 0.82
B53: Automatic? | D53: 0 | E53: Set = 1 for Automatic 0 for Manual
